Cogmind - Beta 13 @@@ ROGUE MODE // 2024.04.09 @ 23:33:23 Player: Exceptionally Mediocre Result: Destroyed by G-47 Trooper with Particle Gun Performance ------------- Evolutions (0) 0 Regions Visited (2) 400 Robots Destroyed (33) 165 Value Destroyed (662) 662 Prototype IDs (0) 0 Alien Tech Used (0) 0 Bonus (0) 0 TOTAL SCORE: 1227 Bonus ------- None Cogmind --------- Core Integrity 0/250 Matter 290/300 Energy 250/250 System Corruption 2% Temperature Cool (9) Movement Rolling (140) Ox4 Location -10/Mines Parts ------- > --- POWER (1) -------- Ion Engine > --- PROPULSION (2) --- Wheel > --- UTILITY (2) ------ High-capacity Storage Unit Sensor Array > --- WEAPON (2) ------- Assault Rifle Scythe > --- INVENTORY (20) --- Ion Engine Ion Engine Light Ion Engine Heat Sink Improved Heat Sink Large Battery (200) High-capacity Matter Pod (200) Compact Matter Pod (76) Trap Scanner Signal Interpreter Particle Charger Improved Power Shielding Improved Weapon Shielding Hardlight Generator Hacking Suite Light Assault Rifle Rocket Launcher Plasma Flamer Mining Claw Peak State ------------ > --- POWER ------------ Ion Engine > --- PROPULSION ------- Wheel Compact Wheel > --- UTILITY ---------- High-capacity Storage Unit Sensor Array > --- WEAPON ----------- Assault Rifle Scythe > --- INVENTORY -------- Ion Engine Ion Engine Ion Engine Light Ion Engine Heat Sink Improved Heat Sink Large Battery High-capacity Matter Pod Compact Matter Pod Trap Scanner Signal Interpreter Particle Charger Improved Power Shielding Improved Weapon Shielding Hardlight Generator Hacking Suite Light Assault Rifle Rocket Launcher Plasma Flamer Mining Claw [Rating: 13] Favorites ----------- Power Ion Engine Engine Ion Engine Propulsion Wheel Wheel Wheel Utility High-capacity Storage Unit Device Sensor Array Storage High-capacity Storage Unit Weapon Assault Rifle Energy Gun Small Laser Ballistic Gun Assault Rifle Launcher Rocket Launcher Slashing Weapon Scythe Build | -11 -10 -10 ------- Run | Yrd Mat Min Slots Evolved . | . . . Power . | . . . Propulsion . | . . . Utility . | . . . Weapon . | . . . Parts Attached 29 | 8 13 8 Power 6 | 2 3 1 Engine 6 | 2 3 1 Core . | . . . Reactor . | . . . Propulsion 7 | 2 4 1 Treads . | . . . Leg . | . . . Wheel 7 | 2 4 1 Hover . | . . . Flight . | . . . Utility 4 | 2 2 . Device 2 | 1 1 . Storage 2 | 1 1 . Processor . | . . . Hackware . | . . . Protection . | . . . Artifact . | . . . Weapon 12 | 2 4 6 Energy Gun 1 | 1 . . Energy Cannon . | . . . Ballistic Gun 8 | 1 4 3 Ballistic Cannon . | . . . Launcher 2 | . . 2 Special Weapon . | . . . Impact Weapon . | . . . Slashing Weapon 1 | . . 1 Piercing Weapon . | . . . Special Melee Weapon . | . . . Unidentified Prototypes . | . . . Parts Lost 8 | . 3 5 Power 2 | . 1 1 Propulsion 4 | . 2 2 Utility . | . . . Weapon 2 | . . 2 Highest Loss Streak 2 | . 1 2 To Critical Strikes . | . . . Average Slot Usage (%) 99 | . 99 98 Engine 13 | . 13 14 Wheel 27 | . 27 27 Device 14 | . 14 14 Storage 14 | . 14 14 Ballistic Gun 23 | . 26 19 Launcher 3 | . . 7 Naked Turns . | . . . Heaviest Build 52 | 13 50 52 Greatest Support 26 | 26 26 26 Greatest Overweight (x) 4 | 1 4 4 Average Overweight (x) . | . 1 1 Largest Inventory Capacity 20 | 8 20 20 Average Capacity 16 | 7 15 20 Most Carried 20 | 8 13 20 Average Carried 12 | 4 8 19 Final Capacity 20 | 8 20 20 Final Carried 19 | 8 13 19 Class Distribution -------------------- 57% | Scavenger-Mutant 42% | Mutant Dominant Class ---------------- Mutant | -10/Materials Scavenger-Mutant | -10/Mines Resources | -11 -10 -10 ----------- Run | Yrd Mat Min Matter Collected 1214 | 287 638 289 Remotely . | . . . Salvage Created 953 | 142 641 170 Parts 75 | 8 59 8 Haulers Intercepted 1 | . 1 . Recyclers Shooed 3 | . 3 . Parts Field Recycled . | . . . Retrieved Matter . | . . . Parts Self-Destructed . | . . . Prevented . | . . . Kills | -11 -10 -10 ------- Run | Yrd Mat Min Combat Hostiles Destroyed 23 | . 18 5 Melee 1 | . . 1 Guns 22 | . 18 4 Classes Destroyed 8 | 3 5 . Worker 3 | 1 1 1 Tunneler 2 | 2 . . Hauler 1 | . 1 . Recycler 1 | 1 . . Operator 1 | . 1 . Watcher 2 | . 2 . Swarmer 9 | . 9 . Grunt 14 | . 9 5 Best Kill Streak 5 | 1 5 2 Combat Bots Only 4 | . 4 1 Max Kills in Single Turn 1 | 1 1 1 Gunslinging . | . . . Exploded . | . . . Melee 1 | . . 1 Uniques/NPCs Destroyed . | . . . Combat | -11 -10 -10 -------- Run | Yrd Mat Min Hostile Shots Fired 119 | . 74 45 Missed 26 | . 18 8 Damage Taken 1023 | . 534 489 Core 257 | . 128 129 Absorbed by Shields . | . . . Core Remaining (%) 100 | 100 . . Volleys Fired 98 | 7 60 31 Largest 2 | 2 2 2 Hottest 60 | 60 60 40 Shots Fired 180 | 14 120 46 Gun 175 | 14 120 41 Cannon . | . . . Launcher 5 | . . 5 Special . | . . . Kinetic 163 | 7 115 41 Thermal 12 | 7 5 . Explosive 5 | . . 5 Electromagnetic . | . . . Robot Hit Streak 9 | 7 9 6 Robot Miss Streak 4 | 1 4 2 Penetration Max . | . . . Secondary Targets 2 | . 2 . Max Gunslinging Chain 1 | . 1 . Shots Hit Robots 117 | 9 70 38 Core Hits 50 | 6 32 12 Critical Kills . | . . . Critical Parts Destroyed . | . . . Critical Strikes . | . . . Melee Attacks 6 | . . 6 Impact . | . . . Slashing 6 | . . 6 Piercing . | . . . Sneak Attacks . | . . . Combat Hostiles . | . . . Follow-up Attacks . | . . . Damage Inflicted 1668 | 84 879 705 Guns 1289 | 84 879 326 Cannons . | . . . Explosions 192 | . . 192 Melee 187 | . . 187 Ramming . | . . . Kinetic 1201 | 29 846 326 Thermal 88 | 55 33 . Explosive 192 | . . 192 Electromagnetic . | . . . Impact . | . . . Slashing 187 | . . 187 Piercing . | . . . Highest Corruption 2 | . 2 2 Average Corruption 2 | . 2 2 Corruption Purged . | . . . Corruption Blocked . | . . . Effects 15 | . 2 13 Message Errors 4 | . 1 3 Matter Fused 1 | . . 1 Heat Flow Errors 4 | . . 4 Energy Discharges 1 | . . 1 Parts Rejected 1 | . 1 . Data Loss (minor) 4 | . . 4 Overload Shots . | . . . Overflow Damage 1 | . . 1 Projectiles . | . . . Explosions . | . . . Melee 1 | . . 1 Knockbacks . | . . . Impact . | . . . Kinetic . | . . . Secondary . | . . . Self-Inflicted Damage . | . . . Shots . | . . . Rammed . | . . . Targets Rammed . | . . . Kicked . | . . . Crushed . | . . . Highest Temperature 258 | 20 40 258 Average Temperature 74 | 15 24 97 Received Heat Transfer 429 | . 162 267 Siege Activations . | . . . Robots Corrupted . | . . . Combat Hostiles . | . . . Parts Fried . | . . . Impact Corruptions . | . . . Robots Melted . | . . . Combat Hostiles . | . . . Parts Melted . | . . . Heat Transferred 200 | 125 75 . Parts Sabotaged . | . . . Parts Stolen . | . . . Parts Stripped . | . . . Power Chain Reactions . | . . . Alert | -11 -10 -10 ------- Run | Yrd Mat Min Peak Influence 392 | 20 392 257 Initial 147 | . 13 147 Average 162 | 9 223 146 Maximum Alert Level 1 | . 1 1 Low Security (%) 61 | 100 34 77 Level 1 38 | . 65 22 Level 2 . | . . . Level 3 . | . . . Level 4 . | . . . Level 5 . | . . . High Security . | . . . Max Security . | . . . Squads Dispatched 5 | . 4 1 Investigation 4 | . 3 1 Extermination . | . . . Reinforcement 1 | . 1 . Assault . | . . . Garrison . | . . . Intercept . | . . . Searches Triggered . | . . . Construction Impeded . | . . . Haulers Reinforced . | . . . Active Scanning Responses . | . . . Cargo Convoy Interrupts . | . . . Stealth | -11 -10 -10 --------- Run | Yrd Mat Min Distress Signals 2 | . 2 . Communications Jammed . | . . . Distress Signals . | . . . Times Spotted 32 | . 24 8 Peak Tracking Total 5 | . 5 2 Tactical Retreats 1 | . . 1 Traps | -11 -10 -10 ------- Run | Yrd Mat Min Traps Triggered 2 | . 2 . Indirectly . | . . . Trap Hack Attempts . | . . . Triggered . | . . . Disarmed . | . . . Reprogrammed . | . . . Reused . | . . . Traps Extracted . | . . . Installed . | . . . Triggered . | . . . Machines | -11 -10 -10 ---------- Run | Yrd Mat Min Machines Disabled 1 | . 1 . Max in Single Turn 1 | . 1 . Machines Repaired . | . . . Machines Dismantled . | . . . Machines Sabotaged . | . . . Overloaded Fab Kills . | . . . Hacking | -11 -10 -10 --------- Run | Yrd Mat Min Machines Accessed 5 | . 4 1 Terminals 4 | . 4 . Fabricators . | . . . Repair Stations . | . . . Recycling Units . | . . . Scanalyzers . | . . . Garrison Access . | . . . Total Hacks 15 | . 14 1 Successful 7 | . 6 1 Failed 8 | . 8 . Catastrophic . | . . . Database Lockouts . | . . . Manual 13 | . 13 . Terminals 14 | . 14 . Fabricators . | . . . Repair Stations . | . . . Recycling Units . | . . . Scanalyzers . | . . . Garrison Access . | . . . Terminal Hacks 3 | . 2 1 Open Door 1 | . . 1 Branch Access Points 1 | . 1 . Terminal Index 1 | . 1 . Fabricator Hacks . | . . . Repair Station Hacks . | . . . Recycling Unit Hacks . | . . . Scanalyzer . | . . . Garrison Access Hacks . | . . . Unauthorized Hacks 4 | . 4 . Terminals 4 | . 4 . Botnet 4 | . 4 . Fabricators . | . . . Repair Stations . | . . . Recycling Units . | . . . Scanalyzers . | . . . Garrison Access . | . . . Data Cores Recovered . | . . . Used . | . . . Hacking Detections 4 | . 4 . Full Trace Events 2 | . 2 . Feedback Events . | . . . Feedback Blocked . | . . . Robot Schematics Acquired . | . . . Robots Built . | . . . Authchips . | . . . Time . | . . . Total Robot Build Rating . | . . . Part Schematics Acquired . | . . . Parts Built . | . . . Authchips . | . . . Time . | . . . Total Part Build Rating . | . . . Parts Repaired . | . . . Time . | . . . Parts Recycled . | . . . Recycled Matter . | . . . Retrieved Matter . | . . . Retrieved Components . | . . . Parts Scanalyzed . | . . . Part Schematics Acquired . | . . . Parts Damaged . | . . . Bothacking | -11 -10 -10 ------------ Run | Yrd Mat Min Used RIF Installer . | . . . Robots Hacked . | . . . Non-combat . | . . . Combat . | . . . Robot Hacks Applied . | . . . Relay Couplers Released . | . . . Fabnet Peak Effective % . | . . . Robots Rewired . | . . . Allies Hacked . | . . . Hacks Repelled . | . . . Allies | -11 -10 -10 -------- Run | Yrd Mat Min Total Allies . | . . . Largest Group . | . . . Highest-Rated Group . | . . . Highest-Rated Ally . | . . . Total Orders . | . . . Ally Attacks . | . . . Total Damage . | . . . Kills . | . . . Allies Corrupted . | . . . Allies Melted . | . . . Intel | -11 -10 -10 ------- Run | Yrd Mat Min Robot Analysis Total . | . . . Derelict Logs Recovered 2 | . . 2 Drone Launches . | . . . Drone Recoveries . | . . . Exploration | -11 -10 -10 ------------- Run | Yrd Mat Min Turns Passed 1501 | 203 670 628 Spaces Moved 1095 | 191 442 462 Core 26 | 26 . . Treads . | . . . Legs . | . . . Wheels 1069 | 165 442 462 Hover . | . . . Flight . | . . . Fastest Speed 50 | 50 80 105 Average Speed 100 | 84 100 105 Slowest Speed 145 | 100 140 145 Overloaded Moves . | . . . Propulsion Burnouts . | . . . Robots Hopped . | . . . Cave-ins Triggered . | . . . Exploration Rate (%) 50 | 7 68 76 Regions Visited 2 Branch Regions 1 Pre-discovered Areas . | . . . Known Exits Taken 1 | . 1 . Unknown Exits Taken 1 | 1 . . Scrap Searched 1 | . . 1 Spaces Dug . | . . . Terrain Destroyed 42 | . . 42 Melee . | . . . Projectile . | . . . AOE 42 | . . 42 Terrain Rammed . | . . . Walls Destroyed . | . . . Machines Disabled . | . . . Actions | -11 -10 -10 --------- Run | Yrd Mat Min Total 1317 | 220 550 547 Wait 43 | . 17 26 Move 1093 | 190 441 462 Hop . | . . . Pick Up 32 | 11 9 12 Fast Attach 10 | 7 3 . Attach 8 | 1 3 4 Detach 2 | 1 1 . Swap 11 | . 7 4 Drop 14 | 3 9 2 Fire 98 | 7 60 31 Melee 6 | . . 6 Ram . | . . . Kick . | . . . Crush . | . . . Escape Stasis . | . . . Rewire . | . . . Trap . | . . . Miscellaneous . | . . . Route ------- -11/Scrapyard -10/Materials (discovered 4 exits: [*Mat x3] / *Min) -10/Mines (discovered 2 exits: [*Mat x2]) History --------- Turn | Location | Event 23 | -11/Scrapyard | Discovered new exit (range 16) 204 | -11/Scrapyard | Entered Materials 291 | -10/Materials | Discovered new exit (range 16) 437 | -10/Materials | Discovered new exit (range 9) 592 | -10/Materials | Build established: Mutant 657 | -10/Materials | Discovered new exit (range 10) 724 | -10/Materials | Identified exit to Mines 781 | -10/Materials | Core integrity fell below 50% 874 | -10/Materials | Entered Mines 878 | -10/Mines | Learned Materials emergency access door positions 880 | -10/Mines | Met a Derelict shopkeep closing up shop 928 | -10/Mines | Build established: Scavenger-Mutant 1014 | -10/Mines | Received a Rocket Launcher from a helpful Derelict 1101 | -10/Mines | Found a hidden stash of uninstalled traps 1174 | -10/Mines | Discovered new exit (range 5) 1192 | -10/Mines | Core integrity fell below 20% 1346 | -10/Mines | Learned location of 1 exit from Materials 1369 | -10/Mines | A weapon hastily lodged in a ceiling crevice suddenly fell to the ground 1430 | -10/Mines | Discovered new exit (range 6) 1502 | -10/Mines | Destroyed by G-47 Trooper with Particle Gun Last Messages --------------- 01356_ Found Med. Laser. 01356_ Found Mining Claw. 01356_ Found 29 Matter. 01357_ Acquired 29 matter. 01357_ Dropped Mining Laser. 01359_ Acquired Mining Claw. 01368_ System corrupted: Energy discharge (-92). 01369_ A Plasma Flamer has been hastily shoved under some rubble with a note attached: "One is never enough." 01374_ Dropped Sensor Array. 01374_ Acquired Plasma Flamer. 01413_ #D BOV3FPKNWJO :IO33#XDOIBC=PTZS0 01430_ EXIT=FOUND 01474_ Ion Engine destroyed. 01475_ Destroyed Heat Sink. 01477_ G-34 Mercenary destroyed. 01480_ Acquired 34 matter. 01490_ Com. Wheel destroyed. 01493_ System corrupted: Component data lost. Map ----- +----------------------------------------------------+ | | | | | | | | | | | | | | | | | | | | | ??????????????????????????????????????? | | ?????????????????###??????????????????? | | ?????????????#### ##?????????????????? | | ??????######## #?????????????????? | | ??????# #?????????????????? | | ??????# < #??????????????????? | | ??????# #### ##??????????????????? | | ??????# #?# ##??????????????????? | | ??????# #?# ###????????????????? | | ??????# #?## ##???????????????? | | ?????## #??### ##??????????????? | | ????## ###### #??????????????? | | ????# #??????????????? | | ????# [ ##??????????????? | | ????# """ ###g# ####???????????????? | | ????# """ #?#@## ##??????????????????? | | ???## """ ### ####???????????????????? | | ??## ## ##?????????????????????? | | ??# ##??#???#?????????????? | | ??# ### #?? ?? ??????????????? | | ??# ##### #? #? #??????????????? | | ??## #??## ## ## ###????????????? | | ???## ##??# # # ?????????????? | | ????## ##?# ???????????????? | | ?????## #### ????????????????? | | ??????# #?# ## "???????????????? | | ??????## ### ##??""??????????????? | | ???????# #???? ?????????????? | | ???????## #???????????????????? | | ????????##### #???????????????????? | | ????????????## ##???????????????????? | | ?????????????## #????????????????????? | | ??????????????# #?????????????????#### | | ??????????????# #????????????????## | | ??????????????# #???????????????## | | ??????????????# #???????????##### | | ??????????##### #???????????# | | ??????????# #????######## ## | | ??????????## ## #????# ## | | ???????????#??# #????# ########## | +----------------------------------------------------+ Best States ------------- Heat Dissipation 25 Energy Generation 10 Energy Capacity 250 Matter Stores 300 Matter Capacity 300 Sight Range 16 Robot Scan Range 14 Terrain Scan Range 16 Terrain Scan Density 10 Evasion (%) 50 Item Schematics ----------------- None Robot Schematics ------------------ None Fabricated ------------ Nothing Alien Tech Used ----------------- None Achievements -------------- None Challenges ------------ None Game ------ Seed NeutronShrapnelDetonator Manual? 0 Play Time 00:41:45 Cumulative 32.3 hours Start 2024.04.09 @ 22:39:07 End 2024.04.09 @ 23:33:23 Sessions 1 Manual Loads 0 Difficulty Rogue Special Mode None Game No. 34 Rogue 34 Adventurer 0 Explorer 0 Win Type - Total 0 Types 0/0/0/0/0/0/0/0/0 Lore% 14 Gallery% 30 Achievement% 22 Wizard Run 0 Options --------- Layout 1 ASCII 0 Keyboard 1 Movement Vi Keybinds 0 Fullscreen 1 Font 24/Smallcaps Map View 50x35 Zoom Use 0% Tactical HUD 1 Map Filters NONE Filters NONE Steam 1 RUN: 703e0586-b6d2-4093-9931-a1c53d188228